Cogmind - Beta 11 X6 @@@ ROGUE MODE // 2021.08.10 @ 00:42:36 Player: weirdfoe Result: Self-destructed Performance ------------- Evolutions (1) 500 Regions Visited (3) 600 Robots Destroyed (43) 215 Value Destroyed (941) 941 Prototype IDs (2) 40 Alien Tech Used (0) 0 Bonus (12) 12 TOTAL SCORE: 2308 Bonus ------- High Alert Combat Kills 12 Cogmind --------- Core Integrity 192/400 Matter 280/300 Energy 125/125 System Corruption 2% Temperature Cool (0) Movement Rolling (95) Ox1 Location -9/Mines Parts ------- > --- POWER (1) -------- Light Ion Engine > --- PROPULSION (3) --- Wheel Flight Unit Flight Unit > --- UTILITY (3) ------ Heat Sink Cooling System Small Storage Unit > --- WEAPON (2) ------- Light Assault Rifle > --- INVENTORY (8) ---- Ion Engine Light Armor Plating Advanced Beam Cannon Improved Assault Rifle Improved Assault Rifle Improved Assault Rifle Rocket Launcher Mining Claw Peak State ------------ > --- POWER ------------ Ion Engine > --- PROPULSION ------- Wheel Wheel Wheel > --- UTILITY ---------- Heat Sink Medium Storage Unit Visual Processing Unit > --- WEAPON ----------- Advanced Beam Cannon Improved Assault Rifle > --- INVENTORY -------- Ion Engine Hover Unit Small Storage Unit Light Armor Plating Beam Rifle Particle Cannon Improved Assault Rifle Rocket Launcher Mining Laser Mining Claw [Rating: 15] Favorites ----------- Power Ion Engine Engine Ion Engine Propulsion Wheel Wheel Wheel Hover Unit Hover Unit Flight Unit Flight Unit Utility Visual Processing Unit Device Heat Sink Storage Medium Storage Unit Processor Visual Processing Unit Weapon Assault Rifle Energy Gun Beam Rifle Energy Cannon Particle Cannon Ballistic Gun Assault Rifle Ballistic Cannon Improved Light Cannon Launcher Rocket Launcher Slashing Weapon Mining Claw Build | -11 -10 -9 -9 ------- Run | Scr Mat Mat Min Slots Evolved 2 | . . 2 . Power . | . . . . Propulsion 1 | . . 1 . Utility 1 | . . 1 . Weapon . | . . . . Parts Attached 48 | 6 6 22 14 Power 6 | 1 1 2 2 Engine 6 | 1 1 2 2 Core . | . . . . Reactor . | . . . . Propulsion 17 | 2 2 8 5 Treads . | . . . . Leg . | . . . . Wheel 12 | 2 . 7 3 Hover 3 | . 2 1 . Flight 2 | . . . 2 Utility 8 | 1 2 2 3 Device 4 | . . 2 2 Storage 3 | 1 1 . 1 Processor 1 | . 1 . . Hackware . | . . . . Protection . | . . . . Artifact . | . . . . Weapon 17 | 2 1 10 4 Energy Gun 5 | . 1 4 . Energy Cannon 3 | . . 2 1 Ballistic Gun 5 | 2 . 1 2 Ballistic Cannon 1 | . . 1 . Launcher 2 | . . 2 . Special Weapon . | . . . . Impact Weapon . | . . . . Slashing Weapon 1 | . . . 1 Piercing Weapon . | . . . . Special Melee Weapon . | . . . . Unidentified Prototypes 2 | . . 2 . Corrupted Parts 1 | . . . 1 System Corruption 2 | . . . 2 Parts Lost 7 | . 1 4 2 Power . | . . . . Propulsion 6 | . . 4 2 Utility . | . . . . Weapon 1 | . 1 . . Highest Loss Streak 3 | . 1 3 1 Average Slot Usage (%) 91 | . 90 96 84 Engine 11 | . 14 11 11 Wheel 14 | . 3 21 17 Hover 11 | . 24 8 . Flight 3 | . . . 13 Device 7 | . . 10 11 Storage 11 | . 14 11 11 Processor 7 | . 4 11 4 Energy Gun 5 | . 4 9 . Energy Cannon 4 | . . 6 7 Ballistic Gun 11 | . 23 4 7 Naked Turns . | . . . . Heaviest Build 24 | 14 19 24 24 Greatest Support 30 | 20 20 30 30 Greatest Overweight (x) 5 | 1 2 1 5 Average Overweight (x) . | . . . . Largest Inventory Capacity 10 | 8 10 10 10 Average Capacity 9 | 7 8 10 8 Most Carried 10 | 4 8 10 10 Average Carried 7 | 1 5 9 8 Final Capacity 10 | 8 10 10 8 Final Carried 10 | 4 8 10 8 Class Distribution -------------------- 52% | Mutant 47% | Scavenger-Mutant Dominant Class ---------------- Mutant | -10/Materials Scavenger-Mutant | -9/Materials Scavenger-Mutant | -9/Mines Resources | -11 -10 -9 -9 ----------- Run | Scr Mat Mat Min Matter Collected 946 | 203 271 349 123 Remotely . | . . . . Salvage Created 1388 | . 420 738 230 Parts 96 | . 22 60 14 Haulers Intercepted 3 | . 1 2 . Recyclers Shooed 1 | . . . 1 Parts Field Recycled . | . . . . Retrieved Matter . | . . . . Parts Self-Destructed . | . . . . Prevented . | . . . . Kills | -11 -10 -9 -9 ------- Run | Scr Mat Mat Min Combat Hostiles Destroyed 29 | . 6 16 7 Guns 13 | . 6 7 . Cannons 10 | . . 3 7 AOE 4 | . . 4 . Classes Destroyed 9 | . 4 4 1 Worker 4 | . 1 3 . Builder 2 | . . 2 . Tunneler 1 | . . . 1 Hauler 3 | . 1 2 . Operator 1 | . . 1 . Watcher 3 | . 2 1 . Swarmer 9 | . . 6 3 Grunt 16 | . 6 6 4 Sentry 4 | . . 4 . Best Kill Streak 7 | . 3 5 7 Combat Bots Only 7 | . 2 4 7 Max Kills in Single Turn 2 | . 2 2 1 Gunslinging . | . . . . Exploded 2 | . . 2 . Melee . | . . . . Uniques/NPCs Destroyed . | . . . . Combat | -11 -10 -9 -9 -------- Run | Scr Mat Mat Min Damage Taken 1170 | . 247 663 260 Core 242 | . 34 123 85 Absorbed by Shields . | . . . . Core Remaining (%) 93 | 100 86 . . Volleys Fired 125 | . 30 66 29 Largest 2 | . 2 2 2 Hottest 136 | . 60 124 136 Shots Fired 219 | . 59 123 37 Gun 141 | . 59 75 7 Cannon 74 | . . 44 30 Launcher 4 | . . 4 . Special . | . . . . Kinetic 91 | . 53 31 7 Thermal 108 | . . 78 30 Explosive 4 | . . 4 . Electromagnetic 16 | . 6 10 . Robot Hit Streak 9 | . 8 9 4 Robot Miss Streak 5 | . 3 5 2 Penetration Max . | . . . . Secondary Targets . | . . . . Shots Hit Robots 131 | . 37 70 24 Core Hits 53 | . 17 27 9 Critical Kills 4 | . 1 3 . Critical Parts Destroyed 2 | . 1 1 . Critical Strikes 12 | . 2 10 . Burn 5 | . . 5 . Meltdown 2 | . . 2 . Destroy 4 | . 2 2 . Corrupt 1 | . . 1 . Melee Attacks 1 | . . . 1 Impact . | . . . . Slashing 1 | . . . 1 Piercing . | . . . . Sneak Attacks . | . . . . Combat Hostiles . | . . . . Follow-up Attacks . | . . . . Damage Inflicted 2392 | . 493 1480 419 Guns 1095 | . 493 551 51 Cannons 986 | . . 618 368 Explosions 311 | . . 311 . Melee . | . . . . Ramming . | . . . . Kinetic 721 | . 415 255 51 Thermal 1205 | . . 837 368 Explosive 311 | . . 311 . Electromagnetic 155 | . 78 77 . Impact . | . . . . Slashing . | . . . . Piercing . | . . . . Highest Corruption 2 | . . . 2 Average Corruption 2 | . . . 2 Corruption Purged . | . . . . Overload Shots . | . . . . Overflow Damage . | . . . . Projectiles . | . . . . Explosions . | . . . . Melee . | . . . . Knockbacks 1 | . . 1 . Impact . | . . . . Kinetic 1 | . . 1 . Secondary . | . . . . Self-Inflicted Damage 39 | . . 39 . Shots 2 | . . 2 . Rammed . | . . . . Targets Rammed . | . . . . Kicked . | . . . . Crushed . | . . . . Highest Temperature 263 | . 12 222 263 Average Temperature 74 | . 4 67 133 Received Heat Transfer 429 | . 141 174 114 Siege Activations . | . . . . Robots Corrupted . | . . . . Combat Hostiles . | . . . . Parts Fried 2 | . . 1 1 Impact Corruptions . | . . . . Robots Melted 2 | . . 2 . Combat Hostiles 2 | . . 2 . Parts Melted 7 | . . 5 2 Heat Transferred 2775 | . . 2109 666 Parts Sabotaged . | . . . . Parts Stolen . | . . . . Parts Stripped . | . . . . Power Chain Reactions . | . . . . Missiles Intercepted . | . . . . Alert | -11 -10 -9 -9 ------- Run | Scr Mat Mat Min Peak Influence 467 | . 234 467 326 Initial 181 | . . 16 181 Average 197 | . 97 237 288 Maximum Alert Level 2 | . 1 2 1 Low Security (%) 49 | 100 83 37 17 Level 1 43 | . 16 47 82 Level 2 6 | . . 15 . Level 3 . | . . . . Level 4 . | . . . . Level 5 . | . . . . High Security . | . . . . Max Security . | . . . . Squads Dispatched 4 | . 2 2 . Investigation 1 | . . 1 . Extermination . | . . . . Reinforcement 3 | . 2 1 . Assault . | . . . . Garrison . | . . . . Intercept . | . . . . Construction Impeded . | . . . . Haulers Reinforced . | . . . . Active Scanning Responses . | . . . . Cargo Convoy Interrupts . | . . . . Stealth | -11 -10 -9 -9 --------- Run | Scr Mat Mat Min Distress Signals 3 | . 1 2 . Communications Jammed . | . . . . Distress Signals . | . . . . Times Spotted 48 | . 14 26 8 Peak Tracking Total 7 | . 4 5 7 Tactical Retreats 5 | . 1 4 . Traps | -11 -10 -9 -9 ------- Run | Scr Mat Mat Min Traps Triggered . | . . . . Indirectly . | . . . . Trap Hack Attempts . | . . . . Triggered . | . . . . Disarmed . | . . . . Reprogrammed . | . . . . Reused . | . . . . Traps Extracted . | . . . . Installed . | . . . . Triggered . | . . . . Machines | -11 -10 -9 -9 ---------- Run | Scr Mat Mat Min Machines Disabled 1 | . . 1 . Max in Single Turn 1 | . . 1 . Machines Sabotaged . | . . . . Garrisons Compromised . | . . . . Overloaded Fab Kills . | . . . . Fab Network Shutdowns . | . . . . Hacking | -11 -10 -9 -9 --------- Run | Scr Mat Mat Min Machines Accessed 4 | . 1 3 . Terminals 4 | . 1 3 . Fabricators . | . . . . Repair Stations . | . . . . Recycling Units . | . . . . Scanalyzers . | . . . . Garrison Access . | . . . . Total Hacks 6 | . 2 4 . Successful 1 | . . 1 . Failed 5 | . 2 3 . Catastrophic 2 | . 1 1 . Database Lockouts . | . . . . Manual 6 | . 2 4 . Terminals 6 | . 2 4 . Fabricators . | . . . . Repair Stations . | . . . . Recycling Units . | . . . . Scanalyzers . | . . . . Garrison Access . | . . . . Terminal Hacks 1 | . . 1 . Branch Access Points 1 | . . 1 . Fabricator Hacks . | . . . . Repair Station Hacks . | . . . . Recycling Unit Hacks . | . . . . Scanalyzer . | . . . . Garrison Access Hacks . | . . . . Unauthorized Hacks . | . . . . Terminals . | . . . . Fabricators . | . . . . Repair Stations . | . . . . Recycling Units . | . . . . Scanalyzers . | . . . . Garrison Access . | . . . . Data Cores Recovered . | . . . . Used . | . . . . Hacking Detections 3 | . 1 2 . Full Trace Events 1 | . . 1 . Feedback Events . | . . . . Feedback Blocked . | . . . . Robot Schematics Acquired . | . . . . Robots Built . | . . . . Matter . | . . . . Time . | . . . . Total Robot Build Rating . | . . . . Part Schematics Acquired . | . . . . Parts Built . | . . . . Matter . | . . . . Time . | . . . . Total Part Build Rating . | . . . . Parts Repaired . | . . . . Time . | . . . . Parts Recycled . | . . . . Recycled Matter . | . . . . Retrieved Matter . | . . . . Retrieved Components . | . . . . Parts Scanalyzed . | . . . . Part Schematics Acquired . | . . . . Parts Damaged . | . . . . Bothacking | -11 -10 -9 -9 ------------ Run | Scr Mat Mat Min Used RIF Installer . | . . . . Robots Hacked . | . . . . Non-combat . | . . . . Combat . | . . . . Robot Hacks Applied . | . . . . Relay Couplers Released . | . . . . Robots Rewired . | . . . . Allies Hacked . | . . . . Hacks Repelled . | . . . . Allies | -11 -10 -9 -9 -------- Run | Scr Mat Mat Min Total Allies 3 | . . . 3 Largest Group 3 | . . . 3 Highest-Rated Group 40 | . . . 40 Highest-Rated Ally 16 | . . . 16 Total Orders . | . . . . Ally Attacks 11 | . . . 11 Total Damage 102 | . . . 102 Kills 1 | . . . 1 Allies Corrupted . | . . . . Allies Melted . | . . . . Intel | -11 -10 -9 -9 ------- Run | Scr Mat Mat Min Robot Analysis Total . | . . . . Derelict Logs Recovered 2 | . . . 2 Drone Launches . | . . . . Drone Recoveries . | . . . . Exploration | -11 -10 -9 -9 ------------- Run | Scr Mat Mat Min Turns Passed 1543 | 58 477 653 355 Spaces Moved 1050 | 57 301 401 291 Core 7 | 5 . . 2 Treads . | . . . . Legs . | . . . . Wheels 693 | 52 58 303 280 Hover 341 | . 243 98 . Flight 9 | . . . 9 Fastest Speed 50 | 50 56 80 80 Average Speed 93 | 80 109 89 85 Slowest Speed 440 | 100 180 116 440 Overloaded Moves . | . . . . Propulsion Burnouts . | . . . . Robots Hopped . | . . . . Cave-ins Triggered . | . . . . Exploration Rate (%) 37 | 3 51 40 57 Regions Visited 3 Branch Regions 1 Pre-discovered Areas 1 | . . . 1 Known Exits Taken 1 | . . 1 . Unknown Exits Taken 2 | 1 1 . . Scrap Searched 1 | . . . 1 Spaces Dug . | . . . . Terrain Destroyed 22 | . . 22 . Melee . | . . . . Projectile . | . . . . AOE 22 | . . 22 . Terrain Rammed . | . . . . Walls Destroyed . | . . . . Machines Disabled . | . . . . Actions | -11 -10 -9 -9 --------- Run | Scr Mat Mat Min Total 1394 | 66 390 576 362 Wait 116 | . 44 61 11 Move 1047 | 56 300 400 291 Hop . | . . . . Pick Up 18 | 4 5 7 2 Fast Attach 28 | 6 3 11 8 Attach 7 | . 1 5 1 Detach 9 | . 2 6 1 Swap 13 | . 2 6 5 Drop 30 | . 3 14 13 Fire 125 | . 30 66 29 Melee 1 | . . . 1 Ram . | . . . . Kick . | . . . . Crush . | . . . . Escape Stasis . | . . . . Rewire . | . . . . Trap . | . . . . Miscellaneous . | . . . . Route ------- -11/Scrapyard -10/Materials (discovered 2 exits: *Mat x2) -9/Materials (discovered 2 exits: [*Mat] / *Min) -9/Mines (discovered 2 exits: [*Mat x2]) History --------- Turn | Location | Event 13 | -11/Scrapyard | Discovered new exit (range 15) 59 | -11/Scrapyard | Entered Materials 197 | -10/Materials | Discovered new exit (range 4) 313 | -10/Materials | Build established: Mutant 486 | -10/Materials | Discovered new exit (range 18) 536 | -10/Materials | Entered another Materials area 536 | -9/Materials | Evolved 2 slots: Propulsion x1, Utility x1 775 | -9/Materials | Lost 3 parts (3n) 815 | -9/Materials | Discovered new exit (range 4) 1119 | -9/Materials | Build established: Scavenger-Mutant 1125 | -9/Materials | Identified exit to Mines 1189 | -9/Materials | Entered Mines 1213 | -9/Mines | Excavation squad dispatched 1213 | -9/Mines | A large section of the Mines collapsed 1214 | -9/Mines | Learned Materials machine intel 1217 | -9/Mines | Received a Rocket Launcher from a helpful Derelict 1222 | -9/Mines | Learned location of Storage (-8) 1314 | -9/Mines | Destroyed 7 combat bots 1380 | -9/Mines | Discovered new exit (range 15) 1390 | -9/Mines | Assisted by bots powering up and referring to "LRC-V3" 1395 | -9/Mines | Core integrity fell below 50% 1508 | -9/Mines | Discovered new exit (range 7) 1544 | -9/Mines | Self-destructed Last Messages --------------- 01390_ Trooper 2a: "Hello LRC-V3. What is your command?" 01390_ Mercenary 2a: "Hello LRC-V3. What is your command?" 01390_ Trooper 2b: "Hello LRC-V3. What is your command?" 01391_ K-01 Serf collects debris. 01391_ as-11798 sneak attacks. 01391_ K-01 Serf system corrupted by crushing effect. 01391_ K-01 Serf destroyed. 01393_ Wheel destroyed. 01393_ Destroyed Wheel. 01398_ as-11798 destroyed. 01401_ Acquired Corrupted Wheel. 01401_ Integrated Corrupted Wheel (+2). 01429_ Acquired 12 matter. 01508_ EXIT=FOUND 01523_ Searching scrap... 01523_ Found Cooling System. 01523_ Found 25 Matter. 01527_ Acquired Cooling System. 01528_ Dropped Heat Sink. 01529_ Acquired Heat Sink. Map ----- +----------------------------------------------------+ | ???????????????????????????????? | | ???????????????????????????????? | | ???????????????????????????????? | | ???????????????????????????????? | | ???????????????????????????????? | | ???????????????????????????????? | | ???????????????????????????????? | | ???????????????????????????????? | | ???????????????????????????????? | | ???????????????????????????????? | | ???????????????????????????????? | | ???????????????????????????????? | | ???????????????????????????????? | | #??????????????????????????????? | | #??????????????????????????????? | | #??????????????????????????????? | | #?????????????????????????????? | | ?????????????????????????????? | | ????????????????????????????? | | ????????????????########????? | | #??????????????????# #????? | | ???????????????????# #????? | | ???????????????????# #????? | | ???????????????????# #????? | | ???????????????????# """ #????? | | ???????????????????# """@#????? | | ???????????????????# """ #????? | | ???????????????????# #????? | | ???????????????????# """ #????? | | ???????????????????# """g#????? | | ???????????????????# """ #????? | | ???????????????????# g #????? | | ???????????????????####g###????? | | ??????????????????????# #??????? | | ????????????########### #######? | | ????????????# % ## #? | | ????????????# ######### ## #? | | ??????????### #???????# < #? | | ?????????## ##??????#### #? | | ?????????# #?????????# #? | | ?????????# ##????????# #? | | ???####### ##???##### #? | | ??## #???# #? | | ?## ##### ####? | | ## ## ####???? | | #### #??????? | | """ ##?## ##########??????? | | """ ##?## ##??????????????? | | """ #??# ##?????????????? | | #??# #?????????????? | +----------------------------------------------------+ Best States ------------- Heat Dissipation 60 Energy Generation 10 Energy Capacity 250 Matter Stores 300 Matter Capacity 300 Sight Range 18 Robot Scan Range 14 Terrain Scan Density 10 Evasion (%) 44 Item Schematics ----------------- None Robot Schematics ------------------ None Fabricated ------------ Nothing Alien Tech Used ----------------- None Achievements -------------- None Challenges ------------ None Game ------ Seed StealthDeuteriumAutohacker Manual? 0 Play Time 00:21:05 Cumulative 28.4 hours Start 2021.08.10 @ 00:19:39 End 2021.08.10 @ 00:42:36 Sessions 1 Manual Loads 0 Difficulty Rogue Special Mode None Game No. 81 Rogue 81 Adventurer 0 Explorer 0 Win Type - Total 0 Types 0/0/0/0/0/0/0/0/0 Lore% 30 Gallery% 36 Achievement% 24 Wizard Run 0 Options --------- ASCII 0 Keyboard 0 Movement Numpad Keybinds 0 Fullscreen 2 Font 18/TerminusBold Map View 76x50 Tactical HUD 1 Map Filters NONE Filters NONE Steam 1 RUN: 4d6a839b-d066-41e7-bbcc-e805adc729f4